bitfinex/quotes_SOLUSD_20250108
["timestamp","ask_amount","ask_price","bid_price","bid_amount"]
[1736359875843,3.05483074,195.46,195.36,30.32990952]
[1736359876025,3.05483074,195.46,195.39,30.32990952]
[1736359876227,3.05483074,195.46,195.4,23.776884]
[1736359876618,3.05483074,195.45,195.4,23.776884]
[1736359877243,3.05483074,195.45,195.39,23.776884]
[1736359877589,3.05483074,195.45,195.42,30.32990952]
[1736359877729,3.05483074,195.45,195.42,23.776884]
[1736359878124,2.06458683,195.52,195.42,23.776884]
[1736359878321,6.0109,195.53,195.42,30.32990952]
[1736359878644,6.0109,195.53,195.42,23.776884]
[1736359879347,8.05549023,195.53,195.42,23.776884]
[1736359881016,8.05549023,195.53,195.4,30.32990952]
[1736359881219,0.95910423,195.52,195.39,30.32990952]
[1736359881425,0.95910423,195.52,195.38,30.32990952]
[1736359881664,0.95910423,195.52,195.37,30.32990952]
[1736359881822,0.95910423,195.52,195.35,30.32990952]
[1736359882335,0.95910423,195.52,195.37,30.32990952]
[1736359882537,8.90897491,195.52,195.37,30.32990952]
[1736359882735,8.90897491,195.52,195.38,23.776884]
[1736359883232,8.90897491,195.52,195.38,30.32990952]
[1736359883565,8.90897491,195.52,195.36,30.32990952]
[1736359883942,8.90897491,195.52,195.38,30.32990952]
[1736359884260,3.05833771,195.51,195.4,30.32990952]
[1736359884461,3.05833771,195.51,195.4,23.776884]
[1736359884629,0.95916176,195.5,195.36,30.32990952]
[1736359885469,6.6443,195.47,195.31,30.32990952]
[1736359885629,0.95957092,195.46,195.3,30.32990952]
[1736359885834,1.5338,195.45,195.29,30.32990952]
[1736359886036,0.95965928,195.44,195.3,30.32990952]
[1736359886860,20.0,195.43,195.27,30.32990952]
[1736359887035,6.4008,195.41,195.27,30.32990952]
[1736359887230,0.95980085,195.4,195.27,30.32990952]
[1736359887454,0.95980085,195.4,195.28,30.32990952]
[1736359887659,0.95980085,195.4,195.27,30.32990952]
[1736359888033,0.95976354,195.4,195.3,30.32990952]
[1736359888240,0.95976354,195.4,195.28,30.32990952]
[1736359888451,0.95976354,195.4,195.29,30.32990952]
[1736359888960,20.0,195.38,195.24,73.86291898]
[1736359889273,0.95991263,195.37,195.27,30.32990952]
[1736359889437,0.95991263,195.37,195.26,30.32990952]
[1736359889968,0.95991263,195.37,195.25,23.776884]
[1736359890149,0.9599364,195.38,195.26,30.32990952]
[1736359890654,0.9599364,195.38,195.25,30.32990952]
[1736359890858,0.9599364,195.38,195.24,73.86291898]
[1736359891055,3.05833771,195.37,195.24,73.86291898]
[1736359891364,0.95998136,195.36,195.25,30.32990952]
[1736359891568,0.95998136,195.36,195.24,73.86291898]
[1736359891748,0.95998136,195.36,195.25,30.32990952]
[1736359892373,0.95993645,195.37,195.24,73.86291898]
[1736359893173,0.95993645,195.37,195.25,30.32990952]
[1736359893334,0.95993645,195.37,195.24,43.53300946]
[1736359893534,0.95993645,195.37,195.24,73.86291898]
[1736359893768,0.95993645,195.37,195.24,43.53300946]
[1736359894065,0.95993645,195.37,195.24,73.86291898]
[1736359894265,0.95993645,195.37,195.25,30.32990952]
[1736359894635,0.95993645,195.37,195.27,30.32990952]
[1736359894851,0.95993645,195.37,195.25,54.10679352]
[1736359895066,3.05397907,195.36,195.25,54.10679352]
[1736359895267,3.05397907,195.36,195.25,30.32990952]
[1736359895435,3.05397907,195.36,195.24,43.53300946]
[1736359895436,20.95990917,195.35,195.24,43.53300946]
[1736359895631,6.2073,195.34,195.25,30.32990952]
[1736359895944,6.2073,195.34,195.24,73.86291898]
[1736359896147,0.96001799,195.33,195.22,30.32990952]
[1736359896542,0.96001799,195.33,195.21,34.08990952]
[1736359896740,0.96001799,195.33,195.23,30.32990952]
[1736359896947,0.96001799,195.33,195.22,30.32990952]
[1736359897149,0.96001799,195.33,195.21,34.08990952]
[1736359897351,1.5459,195.32,195.21,3.76]
[1736359897660,0.96015623,195.31,195.18,30.32990952]
[1736359897863,20.0,195.3,195.16,30.32990952]
[1736359898034,0.96033089,195.29,195.15,30.32990952]
[1736359898244,0.96033089,195.29,195.14,30.32990952]
[1736359898550,0.96033089,195.29,195.14,50.32990952]
[1736359898757,0.96033089,195.29,195.14,30.32990952]
[1736359898932,6.0088,195.28,195.14,30.32990952]
[1736359899133,0.96042793,195.27,195.16,54.10679352]
[1736359899440,6.0088,195.28,195.16,30.32990952]
[1736359899441,0.96031079,195.26,195.16,30.32990952]
[1736359899765,1.6493,195.26,195.15,30.32990952]
[1736359900139,0.96042935,195.25,195.12,30.32990952]
[1736359900342,0.96042935,195.25,195.13,30.32990952]
[1736359901143,20.0,195.24,195.11,46.12]
[1736359901345,0.96069756,195.23,195.11,46.12]
[1736359901551,1.522,195.21,195.11,46.12]
[1736359901753,0.96072168,195.2,195.11,46.12]
[1736359902141,1.522,195.21,195.11,46.12]
[1736359902343,0.9606517,195.2,195.11,46.12]
[1736359903247,0.96073454,195.19,195.11,46.12]
[1736359903758,0.96073454,195.19,195.08,30.32990952]
[1736359904183,0.96073454,195.19,195.07,30.32990952]
[1736359904366,0.96080367,195.18,195.05,30.32990952]
[1736359904569,0.96080367,195.18,195.04,30.32990952]
[1736359904773,0.96080367,195.18,194.99,1.5483]
[1736359904774,0.96080367,195.18,195.03,30.32990952]
[1736359904970,7.7396,195.17,195.02,30.32990952]
[1736359905176,0.96101249,195.16,195.01,30.32990952]
[1736359905359,0.96101249,195.16,195.0,30.32990952]
[1736359905360,20.0,195.14,195.0,30.32990952]
[1736359905562,0.96114661,195.13,195.0,30.32990952]
[1736359907082,1.5412,195.12,195.0,30.32990952]
[1736359907380,2.50234794,195.12,195.0,30.32990952]
[1736359907614,2.50234794,195.12,195.01,54.10679352]
[1736359907880,1.5412,195.12,195.03,54.10679352]
[1736359908680,1.5412,195.12,195.05,30.32990952]
[1736359908982,1.5412,195.12,195.0,30.32990952]
[1736359908983,7.7048,195.17,195.07,30.32990952]
[1736359909187,0.96085695,195.16,195.05,30.32990952]
[1736359909566,0.96085695,195.16,195.01,23.776884]
[1736359909567,0.96085695,195.16,195.03,30.32990952]
[1736359909776,9.81241392,195.17,195.05,30.32990952]
[1736359910186,9.81241392,195.17,195.09,30.32990952]
[1736359910358,9.81241392,195.17,195.08,30.32990952]
[1736359911383,9.81241392,195.17,195.05,23.776884]
[1736359911384,9.81241392,195.17,195.09,30.32990952]
[1736359912081,7.7048,195.17,195.11,30.32990952]
[1736359912592,7.7048,195.17,195.1,30.32990952]
[1736359913254,7.7048,195.17,195.11,30.32990952]
[1736359913454,6.1221,195.21,195.14,30.32990952]
[1736359913762,6.1221,195.21,195.15,30.32990952]
[1736359914389,1.5418,195.22,195.17,30.32990952]
[1736359914587,1.5418,195.22,195.16,30.32990952]
[1736359914783,1.5418,195.22,195.16,5.37932939]
[1736359915081,1.5418,195.22,195.15,30.32990952]
[1736359915264,1.5418,195.22,195.14,30.32990952]
[1736359915470,1.5418,195.22,195.09,30.32990952]
[1736359915471,0.96045666,195.21,195.09,30.32990952]
[1736359915790,0.96045666,195.21,195.07,30.32990952]
[1736359915963,0.96045666,195.21,195.08,23.776884]
[1736359916161,0.96045666,195.21,195.07,30.32990952]
[1736359916162,6.6167,195.2,195.07,30.32990952]
[1736359916461,0.96082074,195.19,195.07,30.32990952]
[1736359917560,7.57748658,195.2,195.09,30.32990952]
[1736359917756,6.6167,195.2,195.1,30.32990952]
[1736359917964,6.6167,195.2,195.14,30.32990952]
[1736359918958,6.6167,195.2,195.11,30.32990952]
[1736359919167,6.6167,195.2,195.09,30.32990952]
[1736359919365,6.6167,195.2,195.1,30.32990952]
[1736359919592,6.6167,195.2,195.14,30.32990952]
[1736359920173,1.5418,195.22,195.14,30.32990952]
[1736359920969,3.57375932,195.22,195.11,30.32990952]
[1736359921161,0.96048286,195.21,195.11,30.32990952]
[1736359921357,4.53440947,195.22,195.11,54.10679352]
[1736359921562,3.57375932,195.22,195.13,30.32990952]
[1736359921773,3.57375932,195.22,195.14,30.32990952]
[1736359921984,3.57375932,195.22,195.13,30.32990952]
[1736359922191,3.57375932,195.22,195.12,30.32990952]
[1736359923387,3.57375932,195.22,195.11,30.32990952]
[1736359924090,3.57375932,195.22,195.13,30.32990952]
[1736359924989,1.5418,195.22,195.13,30.32990952]
[1736359925188,1.5418,195.22,195.17,30.32990952]
[1736359925373,1.5418,195.22,195.14,30.32990952]
[1736359925575,1.5418,195.22,195.11,30.32990952]
[1736359925885,1.5418,195.22,195.12,30.32990952]
[1736359926085,1.5418,195.22,195.13,30.32990952]
[1736359926277,1.5418,195.22,195.14,30.32990952]
[1736359926679,1.5418,195.22,195.13,30.32990952]
[1736359926871,0.96055875,195.21,195.11,30.32990952]
[1736359927074,0.96055875,195.21,195.08,30.32990952]
[1736359927273,20.96055875,195.21,195.08,30.32990952]
[1736359927480,20.96055875,195.21,195.05,30.32990952]
[1736359927669,6.444,195.19,195.04,30.32990952]
[1736359927879,0.96092555,195.18,195.04,30.32990952]
[1736359928116,0.96092555,195.18,195.02,3.74]
[1736359928117,0.96092555,195.18,195.06,30.32990952]
[1736359928394,1.6244,195.17,195.04,30.32990952]
[1736359928696,0.96096338,195.16,195.02,34.06990952]
[1736359928991,0.96096338,195.16,195.06,20.0]
[1736359929306,0.96096338,195.16,195.07,23.776884]
[1736359929469,4.65615381,195.17,195.15,23.776884]
[1736359929788,4.65615381,195.17,195.14,23.776884]
[1736359930289,1.6244,195.17,195.12,34.06990952]
[1736359930491,1.6244,195.17,195.12,3.74]
[1736359930791,1.6244,195.17,195.13,30.32990952]
[1736359931699,1.6244,195.17,195.12,34.06990952]
[1736359931897,1.6244,195.17,195.13,30.32990952]
[1736359932394,1.6244,195.17,195.14,20.0]
[1736359932770,1.6244,195.17,195.11,20.0]
[1736359933071,1.6244,195.17,195.13,20.0]
[1736359933573,1.6244,195.17,195.11,23.776884]
[1736359934886,1.6244,195.17,195.07,50.32990952]
[1736359935080,3.04776236,195.16,195.07,50.32990952]
[1736359935275,3.04776236,195.16,195.05,30.32990952]
[1736359935481,0.96079674,195.15,195.04,48.40788289]
[1736359935989,6.5013,195.14,195.04,48.40788289]
[1736359936192,0.96117002,195.13,195.04,48.40788289]
[1736359936892,9.54906236,195.14,195.05,23.776884]
[1736359937098,9.54906236,195.14,195.06,30.32990952]
[1736359937296,9.54906236,195.14,195.08,23.776884]
[1736359937490,3.04776236,195.14,195.09,30.32990952]
[1736359938273,3.04776236,195.13,195.08,23.776884]
[1736359938597,3.04776236,195.13,195.08,54.10679352]
[1736359939591,3.04776236,195.13,195.1,23.776884]
[1736359939775,3.04776236,195.13,195.07,30.32990952]
[1736359940172,3.04776236,195.13,195.06,30.32990952]
[1736359940368,3.04776236,195.13,195.07,54.10679352]
[1736359940580,1.6244,195.17,195.08,30.32990952]
[1736359940777,1.6244,195.17,195.1,23.776884]
[1736359941294,1.6244,195.17,195.1,54.10679352]
[1736359941495,1.6244,195.17,195.11,23.776884]
[1736359941798,1.6244,195.17,195.1,23.776884]
[1736359941996,1.6244,195.17,195.1,54.10679352]
[1736359942693,0.96068412,195.27,195.12,54.10679352]
[1736359942892,3.06017622,195.16,195.14,54.10679352]
[1736359943195,3.06017622,195.16,195.15,23.776884]
[1736359943802,3.06017622,195.16,195.15,54.10679352]
[1736359944198,3.06017622,195.16,195.14,30.32990952]
[1736359944380,3.06017622,195.16,195.12,30.32990952]
[1736359944575,1.6594,195.22,195.12,30.32990952]
[1736359944801,1.6594,195.22,195.13,54.10679352]
[1736359945107,1.6594,195.22,195.15,23.776884]
[1736359945305,1.6594,195.22,195.15,30.32990952]
[1736359945599,1.6594,195.22,195.17,30.32990952]
[1736359945780,1.6594,195.22,195.16,54.10679352]
[1736359945984,3.06175764,195.21,195.17,23.776884]
[1736359946183,3.06175764,195.21,195.17,54.10679352]
[1736359946382,3.06175764,195.21,195.17,23.776884]
[1736359946903,3.06175764,195.21,195.11,30.32990952]
[1736359947504,3.06175764,195.21,195.12,23.776884]
[1736359947800,2.49893075,195.27,195.13,23.776884]
[1736359947801,2.07332376,195.22,195.13,23.776884]
[1736359947994,2.49893075,195.27,195.13,23.776884]
[1736359948202,2.49893075,195.27,195.12,23.776884]
[1736359948395,2.49893075,195.27,195.05,6.2047]
[1736359948396,7.8936,195.22,195.06,30.32990952]
[1736359948706,20.0,195.19,195.04,82.47779241]
[1736359948906,0.96093812,195.18,195.05,30.32990952]
[1736359949079,0.96093812,195.18,195.07,30.32990952]
[1736359949279,0.96083772,195.21,195.09,30.32990952]
[1736359949999,0.96083772,195.21,195.09,23.776884]
[1736359950196,0.96083772,195.21,195.05,23.776884]
[1736359950390,0.96083772,195.21,195.09,23.776884]
[1736359951192,3.06249677,195.2,195.09,30.32990952]
[1736359951398,3.06249677,195.2,195.11,30.32990952]
[1736359951592,3.06249677,195.2,195.13,23.776884]
[1736359952089,3.06249677,195.2,195.12,30.32990952]
[1736359952290,3.06249677,195.2,195.11,30.32990952]
[1736359952492,3.06249677,195.2,195.12,23.776884]
[1736359952696,3.06249677,195.2,195.12,54.10679352]
[1736359952891,3.06249677,195.2,195.11,30.32990952]
[1736359953218,3.06249677,195.19,195.11,30.32990952]
[1736359953507,3.06249677,195.19,195.12,30.32990952]
[1736359953804,3.06249677,195.19,195.14,30.32990952]
[1736359954007,3.06249677,195.19,195.15,54.10679352]
[1736359954189,3.06249677,195.19,195.16,30.32990952]
[1736359954708,3.06249677,195.19,195.17,23.776884]
[1736359955012,3.06249677,195.19,195.17,30.32990952]
[1736359955194,1.6107,195.22,195.17,30.32990952]
[1736359955399,6.6161,195.27,195.17,30.32990952]
[1736359955595,8.1205,195.27,195.15,30.32990952]
[1736359955803,0.96030086,195.26,195.15,30.32990952]
[1736359956007,0.96030086,195.26,195.16,23.776884]
[1736359956796,10.15152882,195.27,195.16,23.776884]
[1736359956797,10.15152882,195.27,195.17,23.776884]
[1736359956989,3.06278141,195.25,195.17,54.10679352]
[1736359957314,3.06278141,195.25,195.17,23.776884]
[1736359958011,3.06278141,195.25,195.18,54.10679352]
[1736359958215,3.06278141,195.25,195.2,30.32990952]
[1736359958393,3.06278141,195.25,195.21,54.10679352]
[1736359958591,3.06278141,195.25,195.23,54.10679352]
[1736359958991,3.06278141,195.25,195.24,30.32990952]
[1736359959399,3.06278141,195.25,195.24,54.10679352]
[1736359961202,2.01803042,195.37,195.25,23.776884]
[1736359961520,7.9861,195.38,195.28,23.776884]
[1736359961703,10.04680843,195.38,195.28,54.10679352]
[1736359962645,10.04680843,195.38,195.29,23.776884]
[1736359962822,7.9861,195.38,195.3,23.776884]
[1736359963011,3.05273637,195.37,195.27,30.32990952]
[1736359963410,3.05273637,195.37,195.24,3.72]
[1736359963411,3.05273637,195.37,195.29,30.32990952]
[1736359963601,3.05273637,195.37,195.3,23.776884]
[1736359963799,4.01246543,195.37,195.26,30.32990952]
[1736359963999,4.01246543,195.37,195.24,3.72]
[1736359964526,20.0,195.35,195.19,30.32990952]
[1736359964723,0.96016861,195.34,195.19,30.32990952]
[1736359964901,0.96016861,195.34,195.22,23.776884]
[1736359965315,0.96016861,195.34,195.21,23.776884]
[1736359965515,1.5535,195.33,195.19,30.32990952]
[1736359965716,6.1444,195.31,195.19,30.32990952]
[1736359965919,6.1444,195.31,195.22,23.776884]
[1736359966220,6.1444,195.31,195.22,54.10679352]
[1736359966435,6.1444,195.31,195.22,23.776884]
[1736359966732,0.96020352,195.3,195.21,23.776884]
[1736359966938,6.1444,195.31,195.21,54.10679352]
[1736359967523,6.1444,195.31,195.23,54.10679352]
[1736359967713,6.1444,195.31,195.25,23.776884]
[1736359968012,6.2248,195.36,195.29,54.10679352]
[1736359968217,6.2248,195.36,195.29,23.776884]
[1736359969133,6.2248,195.36,195.28,23.776884]
[1736359969340,6.2248,195.36,195.3,23.776884]
[1736359969831,6.2248,195.36,195.27,30.32990952]
[1736359970035,6.2248,195.36,195.27,23.776884]
[1736359970225,0.95995017,195.35,195.24,30.32990952]
[1736359970413,6.2248,195.36,195.26,23.776884]
[1736359970903,6.2248,195.36,195.29,54.10679352]
[1736359971434,6.2248,195.36,195.3,23.776884]
[1736359971823,6.2248,195.36,195.29,23.776884]
[1736359972031,6.2248,195.36,195.29,54.10679352]
[1736359972802,29.0951525,195.43,195.3,30.32990952]
[1736359973031,29.0951525,195.43,195.33,30.32990952]
[1736359973032,9.0951525,195.43,195.33,30.32990952]
[1736359973332,9.0951525,195.43,195.34,23.776884]
[1736359973536,10.19837634,195.43,195.34,54.10679352]
[1736359973712,10.19837634,195.43,195.36,23.776884]
[1736359974124,8.1354,195.43,195.36,23.776884]
[1736359974434,8.1354,195.43,195.35,23.776884]
[1736359974845,8.1354,195.43,195.36,23.776884]
[1736359975540,1.5405,195.43,195.36,23.776884]
[1736359975911,1.5405,195.43,195.36,54.10679352]
[1736359976241,1.5405,195.43,195.36,23.776884]
[1736359977328,1.5405,195.43,195.35,23.776884]
[1736359977546,1.5405,195.43,195.35,54.10679352]
[1736359978126,1.5405,195.43,195.36,30.32990952]
[1736359978331,1.5405,195.43,195.36,23.776884]
[1736359978527,1.5405,195.43,195.36,54.10679352]
[1736359978732,1.5405,195.43,195.35,30.32990952]
[1736359979147,1.5405,195.43,195.3,30.32990952]
[1736359979148,2.50005551,195.43,195.3,30.32990952]
[1736359979329,6.1049,195.42,195.28,30.32990952]
[1736359979535,0.95982285,195.41,195.28,30.32990952]
[1736359979729,0.95982285,195.41,195.2,30.32990952]
[1736359979730,20.0,195.39,195.2,6.6068]
[1736359979934,2.51452154,195.38,195.23,30.32990952]
[1736359980118,2.51452154,195.38,195.25,30.32990952]
[1736359980323,2.51452154,195.38,195.26,54.10679352]
[1736359980519,2.51452154,195.38,195.29,30.32990952]
[1736359980730,2.51452154,195.38,195.23,20.0]
[1736359980938,22.51452154,195.38,195.24,30.32990952]
[1736359981234,22.51452154,195.38,195.27,30.32990952]
[1736359981440,24.56512744,195.38,195.27,30.32990952]
[1736359981637,4.56512744,195.38,195.27,30.32990952]
[1736359981837,4.56512744,195.38,195.25,30.32990952]
[1736359982040,20.0,195.37,195.23,30.32990952]
[1736359982347,6.6478,195.35,195.25,30.32990952]
[1736359983125,6.6478,195.35,195.26,54.10679352]
[1736359983744,6.6478,195.35,195.27,30.32990952]
[1736359984053,0.95996583,195.34,195.26,23.776884]
[1736359984345,0.95996583,195.34,195.22,30.32990952]
[1736359984522,0.95996583,195.34,195.23,30.32990952]
[1736359984927,0.95996583,195.34,195.24,30.32990952]
[1736359985226,0.95996583,195.34,195.23,30.32990952]
[1736359985442,0.96011572,195.34,195.26,23.776884]
[1736359985746,0.96011572,195.34,195.24,30.32990952]
[1736359986323,3.03933754,195.33,195.25,54.10679352]
[1736359986543,0.96001509,195.32,195.24,30.32990952]
[1736359986941,3.99943511,195.33,195.24,30.32990952]
[1736359987221,3.99943511,195.33,195.25,30.32990952]
[1736359987621,3.99943511,195.33,195.24,30.32990952]
[1736359987848,3.03933754,195.33,195.24,30.32990952]
[1736359988039,0.96004887,195.34,195.24,30.32990952]
[1736359989024,0.96004887,195.34,195.22,30.32990952]
[1736359989427,0.96004887,195.34,195.23,30.32990952]
[1736359989769,0.96004887,195.34,195.26,30.32990952]
[1736359989928,6.6478,195.35,195.26,30.32990952]
[1736359990354,6.6478,195.35,195.28,30.32990952]
[1736359990736,6.6478,195.35,195.29,23.776884]
[1736359990927,6.6478,195.35,195.26,30.32990952]
[1736359991359,6.6478,195.35,195.27,23.776884]
[1736359991528,0.95996944,195.34,195.22,30.32990952]
[1736359991733,0.95996944,195.34,195.24,30.32990952]
[1736359992143,0.95996944,195.34,195.23,30.32990952]
[1736359992744,6.6478,195.35,195.25,30.32990952]
[1736359993054,3.04340908,195.33,195.26,23.776884]
[1736359993251,0.96002038,195.32,195.23,30.32990952]
[1736359994027,21.6034,195.31,195.17,30.32990952]
[1736359994341,21.6034,195.31,195.15,30.32990952]
[1736359994342,6.13,195.29,195.15,30.32990952]
[1736359994541,0.96042269,195.28,195.16,54.10679352]
[1736359994944,0.96042269,195.28,195.17,30.32990952]
[1736359995164,7.09035667,195.29,195.18,30.32990952]
[1736359995366,6.13,195.29,195.19,54.10679352]
[1736359995572,0.96023294,195.28,195.19,23.776884]
[1736359995868,0.96023294,195.28,195.12,30.32990952]
[1736359996067,1.5046,195.27,195.12,30.32990952]
[1736359996235,1.5046,195.27,195.1,6.4508]
[1736359996236,0.96056067,195.26,195.14,30.32990952]
[1736359996442,0.96056067,195.26,195.16,30.32990952]
[1736359996648,4.54800908,195.27,195.16,30.32990952]
[1736359996850,4.54800908,195.27,195.19,54.10679352]
[1736359997864,4.54800908,195.27,195.1,36.78070952]
[1736359997865,4.54800908,195.27,195.16,30.32990952]
[1736359998067,3.04340908,195.26,195.18,30.32990952]
[1736359998238,4.00378099,195.26,195.14,30.32990952]
[1736359998438,4.00378099,195.26,195.13,30.32990952]
[1736359998758,4.00378099,195.26,195.14,23.776884]
[1736359999060,4.00378099,195.26,195.15,30.32990952]
[1736359999369,4.00378099,195.26,195.15,23.776884]
[1736359999663,3.04340908,195.25,195.14,54.10679352]
[1736359999861,0.96051555,195.24,195.14,54.10679352]
[1736360000443,0.96051555,195.24,195.14,30.32990952]
[1736360000657,0.96051555,195.24,195.15,23.776884]
[1736360001050,4.00390155,195.25,195.15,54.10679352]
[1736360001236,3.04340908,195.25,195.16,23.776884]
[1736360001435,4.00385312,195.25,195.16,23.776884]
[1736360001675,3.04340908,195.23,195.16,23.776884]
[1736360002366,3.04340908,195.23,195.16,30.32990952]
[1736360002857,3.04340908,195.24,195.16,30.32990952]
[1736360003339,3.04340908,195.24,195.15,30.32990952]
[1736360003655,3.04340908,195.24,195.15,23.776884]
[1736360003960,3.04340908,195.24,195.15,54.10679352]
[1736360004163,3.04340908,195.24,195.15,23.776884]
[1736360004552,3.04340908,195.24,195.19,23.776884]
[1736360004763,10.99327976,195.25,195.19,54.10679352]
[1736360005141,3.04340908,195.25,195.18,30.32990952]
[1736360005341,3.04340908,195.25,195.16,30.32990952]
[1736360005541,3.04340908,195.25,195.17,30.32990952]
[1736360005744,3.04340908,195.25,195.17,23.776884]
[1736360005945,3.04340908,195.25,195.17,54.10679352]
[1736360006151,3.04340908,195.26,195.17,54.10679352]
[1736360006465,3.04340908,195.26,195.18,30.32990952]
[1736360007349,3.04340908,195.26,195.18,18.92303578]
[1736360007549,3.04340908,195.26,195.19,18.92303578]
[1736360007754,3.04340908,195.26,195.18,18.92303578]
[1736360007980,3.04340908,195.25,195.17,18.92303578]
[1736360008469,3.04340908,195.25,195.18,18.92303578]
[1736360008677,3.04340908,195.25,195.21,18.92303578]
[1736360009460,3.04340908,195.25,195.22,18.92303578]
[1736360009673,3.04340908,195.26,195.15,23.776884]
[1736360009858,3.04340908,195.26,195.21,23.776884]
[1736360010455,3.04340908,195.26,195.21,18.92303578]
[1736360010652,3.04340908,195.26,195.22,18.92303578]
[1736360011056,1.5046,195.27,195.21,18.92303578]
[1736360011454,1.5046,195.27,195.22,18.92303578]
[1736360011654,1.5046,195.27,195.21,18.92303578]
[1736360011857,1.5046,195.27,195.22,18.92303578]
[1736360012761,6.13,195.29,195.23,18.92303578]
[1736360013156,6.13,195.29,195.23,23.776884]
[1736360013756,6.13,195.29,195.23,18.92303578]
[1736360013956,6.13,195.29,195.21,18.92303578]
[1736360014257,6.13,195.29,195.2,42.69991978]
[1736360015379,1.6389,195.27,195.15,18.92303578]
[1736360015591,0.96048986,195.26,195.14,18.92303578]
[1736360016083,8.91036054,195.26,195.13,18.92303578]
[1736360016286,8.91036054,195.26,195.12,18.92303578]
[1736360016486,8.91036054,195.26,195.15,23.776884]
[1736360016784,7.94987068,195.24,195.15,23.776884]
[1736360016992,7.94987068,195.24,195.13,18.92303578]
[1736360016993,0.9605634,195.23,195.13,23.776884]
[1736360017164,0.9605634,195.23,195.13,42.69991978]
[1736360017675,0.9605634,195.23,195.13,23.776884]
[1736360017861,7.7035,195.22,195.09,18.92303578]
[1736360018177,0.96075894,195.21,195.09,18.92303578]
[1736360018354,7.94987068,195.19,195.09,18.92303578]
[1736360018557,0.96076587,195.18,195.1,23.776884]
[1736360018783,7.94987068,195.19,195.1,23.776884]
[1736360018979,7.94987068,195.19,195.13,18.92303578]
[1736360019291,11.00003881,195.21,195.13,23.776884]
[1736360019760,3.05016813,195.21,195.13,18.92303578]
[1736360019961,3.05016813,195.21,195.13,23.776884]
[1736360020363,0.96062378,195.2,195.1,18.92303578]
[1736360020679,20.0,195.19,195.11,23.776884]
[1736360021687,7.94987068,195.15,195.11,5.95064962]
[1736360021866,7.94987068,195.19,195.1,18.92303578]
[1736360022066,7.94987068,195.19,195.11,18.92303578]
[1736360022366,7.94987068,195.19,195.12,18.92303578]
[1736360022566,7.94987068,195.19,195.11,18.92303578]
[1736360022884,11.96072879,195.21,195.11,18.92303578]
[1736360023292,7.94987068,195.2,195.11,18.92303578]
[1736360023960,20.0,195.18,195.04,48.40788289]
[1736360024161,0.96062939,195.17,195.02,1.6281]
[1736360024370,20.96062939,195.17,195.06,18.92303578]
[1736360024685,20.96062939,195.17,195.05,18.92303578]
[1736360024982,7.94987068,195.16,195.08,18.92303578]
[1736360025172,11.00003881,195.16,195.11,18.92303578]
[1736360025373,3.05016813,195.16,195.1,18.92303578]
[1736360025572,3.05016813,195.16,195.09,18.92303578]
[1736360025768,3.05016813,195.16,195.07,18.92303578]
[1736360025968,3.05016813,195.16,195.09,18.92303578]
[1736360026168,3.05016813,195.16,195.1,18.92303578]
[1736360026582,3.05016813,195.15,195.1,18.92303578]
[1736360027688,7.94987068,195.13,195.1,23.776884]
[1736360028075,7.94987068,195.13,195.07,18.92303578]
[1736360028382,7.94987068,195.09,195.07,18.92303578]
[1736360028683,7.94987068,195.09,195.07,42.69991978]
[1736360028887,7.94987068,195.09,195.08,42.69991978]
[1736360029384,7.94987068,195.12,195.08,42.69991978]
[1736360029588,7.94987068,195.15,195.1,18.92303578]
[1736360030884,7.94987068,195.13,195.1,18.92303578]
[1736360031094,7.94987068,195.13,195.07,18.92303578]
[1736360031388,7.94987068,195.11,195.08,18.92303578]
[1736360032085,31.79948273,195.16,195.08,18.92303578]
[1736360032086,7.94987068,195.12,195.08,18.92303578]
[1736360032771,15.89974136,195.14,195.08,18.92303578]
[1736360033291,8.01448771,195.12,195.09,18.92303578]
[1736360033590,8.01448771,195.14,195.11,18.92303578]
[1736360033792,8.01448771,195.14,195.1,18.92303578]
[1736360033978,8.01448771,195.16,195.1,18.92303578]
[1736360034581,8.01448771,195.17,195.1,18.92303578]
[1736360034973,8.01448771,195.17,195.11,18.92303578]
[1736360035172,8.01448771,195.17,195.1,18.92303578]
[1736360035375,8.01448771,195.18,195.14,18.92303578]
[1736360036090,15.71798771,195.22,195.15,18.92303578]
[1736360036280,15.71798771,195.22,195.14,18.92303578]
[1736360036588,15.71798771,195.22,195.15,18.92303578]
[1736360036971,1.5488,195.22,195.17,18.92303578]
[1736360037172,1.5488,195.22,195.14,18.92303578]
[1736360037578,3.05657574,195.21,195.13,18.92303578]
[1736360037775,0.96052523,195.2,195.08,18.92303578]
[1736360037994,6.0418,195.19,195.11,18.92303578]
[1736360038183,14.05628771,195.19,195.1,18.92303578]